Cogmind - Beta 10.2 *** ADVENTURER MODE // 2021.01.11 @ 21:55:28 Player: soymachine Result: Destroyed by G-67 Veteran with Electrolaser Performance ------------- Evolutions (6) 3000 Regions Visited (15) 3000 Robots Destroyed (118) 590 Value Destroyed (4007) 4007 Prototype IDs (10) 200 Alien Tech Used (0) 0 Bonus (303) 303 TOTAL SCORE: 11100 Bonus ------- High Alert Combat Kills 61 Follower Combat Kills 232 Entered Garrisons 200 Used RIF Installer 500 Friendly Fire -690 Cogmind --------- Core Integrity 0/1150 Matter 291/300 Energy 52/100 System Corruption 6% Temperature Cool (6) Movement Core (50) Location -4/Extension Parts ------- > --- POWER (2) -------- (None) > --- PROPULSION (4) --- (None) > --- UTILITY (11) ----- Visual Processing Unit Experimental Signal Interpreter Transmission Jammer Advanced System Shield > --- WEAPON (2) ------- (None) > --- INVENTORY (4) ---- Heavy Gauss Cannon Peak State ------------ > --- POWER ------------ Light Nuclear Core > --- PROPULSION ------- Myomer Leg Linear Gravjet Combat Gravmag System Combat Gravmag System > --- UTILITY ---------- Visual Processing Unit Experimental Signal Interpreter Advanced Salvage Targeting Computer Core Analyzer Improved Transmission Jammer Point Defense Array Hacking Suite Relay Coupler [Hunter] > --- WEAPON ----------- Gravity Flail Gravity Flail > --- INVENTORY -------- Hardcell Cannon [Rating: 82] Favorites ----------- Power Light Nuclear Core Engine Light Ion Engine Power Core Light Nuclear Core Reactor Light Antimatter Reactor Propulsion Armored Treads Treads Armored Treads Leg Aluminum Leg Wheel Compact Wheel Hover Unit Combat Gravmag System Flight Unit Xenon Bombardment Thruster Utility Advanced Signal Interpreter Device Advanced Sensor Array Storage Small Storage Unit Processor Advanced Signal Interpreter Hackware Relay Coupler [Hunter] Protection Improved Medium Armor Plating Weapon Katana Energy Gun EM Pulse Gun Energy Cannon Cooled Plasma Cannon Ballistic Gun Improved Heavy Machine Gun Ballistic Cannon Hardcell Cannon Launcher Heavy Missile Launcher Special Weapon Remote Datajack Impact Weapon Gravity Flail Slashing Weapon Katana Piercing Weapon Heavy Pick Special Melee Weapon Datajack Build | -11 -10 -9 -9 -8 -8 -8 -7 -7 -7 -6 -6 -6 -5 -4 -4 ------- Run | Scr Mat Mat Min Mat Sto Gar Fac Was Fac Fac Low Low Fac Fac Ext Slots Evolved 12 | . . 2 . 2 . . 2 . . 2 . . 2 2 . Power 1 | . . . . . . . . . . . . . 1 . . Propulsion 2 | . . . . 1 . . . . . 1 . . . . . Utility 9 | . . 2 . 1 . . 2 . . 1 . . 1 2 . Weapon . | . . . . . . . . . . . . . . . . Parts Attached 135 | . 2 1 . 2 18 10 15 . 15 28 3 1 10 25 5 Power 17 | . . . . . 2 1 1 . 1 5 1 . 2 3 1 Engine 8 | . . . . . 2 . . . 1 3 . . 1 . 1 Core 7 | . . . . . . 1 1 . . 2 1 . 1 1 . Reactor 2 | . . . . . . . . . . . . . . 2 . Propulsion 35 | . . . . 2 6 . 3 . 2 9 . . . 11 2 Treads 16 | . . . . . 6 . 3 . 2 5 . . . . . Leg 3 | . . . . . . . . . . . . . . 3 . Wheel 4 | . . . . 2 . . . . . . . . . . 2 Hover 6 | . . . . . . . . . . . . . . 6 . Flight 6 | . . . . . . . . . . 4 . . . 2 . Utility 36 | . 1 . . . 4 1 4 . 6 8 . . 5 6 1 Device 13 | . . . . . 2 1 . . 1 3 . . 2 4 . Storage 3 | . . . . . . . . . 1 1 . . . . 1 Processor 9 | . 1 . . . 2 . . . 3 1 . . 2 . . Hackware 9 | . . . . . . . 4 . . 2 . . 1 2 . Protection 2 | . . . . . . . . . 1 1 . . . . . Artifact . | . . . . . . . . . . . . . . . . Weapon 47 | . 1 1 . . 6 8 7 . 6 6 2 1 3 5 1 Energy Gun 2 | . 1 1 . . . . . . . . . . . . . Energy Cannon 6 | . . . . . 1 1 1 . 1 1 . . 1 . . Ballistic Gun 6 | . . . . . 2 3 1 . . . . . . . . Ballistic Cannon 2 | . . . . . . . . . . . . . . 1 1 Launcher 12 | . . . . . 2 2 2 . 2 2 1 1 . . . Special Weapon 5 | . . . . . 1 . . . 1 1 . . 1 1 . Impact Weapon 5 | . . . . . . . . . 1 1 . . . 3 . Slashing Weapon 4 | . . . . . . 1 1 . 1 1 . . . . . Piercing Weapon 1 | . . . . . . . . . . . . . 1 . . Special Melee Weapon 4 | . . . . . . 1 2 . . . 1 . . . . Unidentified Prototypes 8 | . . . . . 3 . . . 1 . . . 2 2 . Parts Lost 64 | . 1 . 1 5 . . 3 . 17 5 . . 7 22 3 Power 8 | . . . 1 . . . 1 . 2 1 . . 1 2 . Propulsion 22 | . . . . 3 . . . . 5 . . . 4 8 2 Utility 18 | . . . . . . . 1 . 5 3 . . 1 8 . Weapon 16 | . 1 . . 2 . . 1 . 5 1 . . 1 4 1 Highest Loss Streak 7 | . 1 . 1 5 . . 2 . 6 3 . . 5 7 3 Average Slot Usage (%) 73 | . 91 73 70 46 72 82 84 100 82 69 85 86 73 58 31 Engine 2 | . 14 11 4 . 7 3 . . . 3 4 . . . . Core 3 | . . . . . . 5 6 7 4 1 1 6 6 . . Treads 11 | . . . . . 22 27 23 23 17 8 . . . . . Leg 2 | . 28 22 22 13 . . . . . . . . . 3 4 Hover 1 | . . . . . . . . . . . . . . 8 . Flight 3 | . . . . . . . . . . 5 26 26 16 1 . Device 6 | . . . . . 9 10 11 7 4 2 6 6 4 4 5 Storage 4 | . 14 11 11 9 9 9 7 7 5 1 . . . . . Processor 14 | . 6 11 11 9 9 9 7 7 15 21 20 20 19 18 10 Hackware 9 | . . . . . . . 12 30 19 9 13 13 10 8 5 Energy Cannon 2 | . . . . . 3 7 3 . . 3 . . 1 . . Ballistic Gun 2 | . 14 11 11 7 7 3 3 . . . . . . . . Launcher 2 | . . . . . 3 5 3 7 3 1 1 6 . . . Special Weapon 1 | . . . . . 1 . . . 2 1 6 6 2 1 . Impact Weapon 1 | . . . . . . . . . . 5 . . . 5 4 Slashing Weapon 1 | . . . . . . 1 1 7 5 . 2 . . . . Naked Turns . | . . . . . . . . . . . . . . . . Heaviest Build 43 | 10 10 10 10 7 22 25 25 19 21 43 20 21 25 28 19 Greatest Support 90 | 20 20 20 20 32 60 60 84 84 84 90 28 28 28 62 20 Greatest Overweight (x) 7 | . . . . . . . . . 6 5 . . 7 2 . Average Overweight (x) . | . . . . . . . . . . . . . . . . Largest Inventory Capacity 10 | . 6 6 6 6 6 6 6 6 6 10 4 4 4 4 8 Average Capacity 5 | . 6 6 6 6 6 6 6 6 5 5 4 4 4 4 4 Most Carried 8 | . 6 5 5 5 6 6 6 6 6 8 4 4 4 4 3 Average Carried 4 | . 5 4 4 4 4 5 5 6 5 4 3 3 3 2 1 Final Capacity 6 | 6 6 6 6 6 6 6 6 6 4 4 4 4 4 4 4 Final Carried 6 | 6 5 4 5 2 6 5 6 6 4 4 4 3 4 2 1 Class Distribution -------------------- 42% | Mutant 28% | Hacker-Mutant 7% | Assassin 7% | Hacker-Assassin 6% | Hacker-Scout 3% | Commander-Mutant Dominant Class ---------------- Mutant | -10/Materials Mutant | -9/Materials Mutant | -9/Mines Mutant | -8/Materials Mutant | -8/Storage Mutant | -8/Garrison Mutant | -7/Factory Hacker-Mutant | -7/Waste Assassin | -7/Factory Hacker-Mutant | -6/Factory Hacker-Scout | -6/Lower Caves Hacker-Scout | -6/Lower Caves Hacker-Assassin | -5/Factory Hacker-Mutant | -4/Factory Hacker-Mutant | -4/Extension Resources | -11 -10 -9 -9 -8 -8 -8 -7 -7 -7 -6 -6 -6 -5 -4 -4 ----------- Run | Scr Mat Mat Min Mat Sto Gar Fac Was Fac Fac Low Low Fac Fac Ext Matter Collected 2359 | 200 13 27 5 . 329 107 258 357 175 270 79 . 186 301 52 Remotely . | . . . . . . . . . . . . . . . . Salvage Created 6213 | . 112 53 128 . 449 291 642 1414 483 512 . 47 512 899 671 Parts 212 | . 3 2 4 . 26 17 27 4 15 31 . 4 40 32 7 Haulers Intercepted . | . . . . . . . . . . . . . . . . Recyclers Shooed 5 | . . . 1 . . . . . 2 . . . . 2 . Parts Field Recycled . | . . . . . . . . . . . . . . . . Retrieved Matter . | . . . . . . . . . . . . . . . . Parts Self-Destructed 2 | . . . . . . . . . . . . 2 . . . Prevented . | . . . . . . . . . . . . . . . . Kills | -11 -10 -9 -9 -8 -8 -8 -7 -7 -7 -6 -6 -6 -5 -4 -4 ------- Run | Scr Mat Mat Min Mat Sto Gar Fac Was Fac Fac Low Low Fac Fac Ext Combat Hostiles Destroyed 84 | . 2 1 1 . 11 6 13 6 6 11 . 2 8 17 . Melee 25 | . . . . . . . 2 . 5 2 . . 8 8 . Guns 13 | . 1 1 1 . 7 1 2 . . . . . . . . Cannons 16 | . . . . . 1 3 5 . 1 3 . . . 3 . AOE 22 | . 1 . . . 3 2 3 6 . 5 . 2 . . . Classes Destroyed 14 | . 2 1 3 . 2 . 3 1 1 . . 1 . . . Worker 4 | . . . 1 . . . 1 . . . . . . 1 1 Builder 12 | . . . . . . . 1 . . 1 . . 4 . 6 Recycler 11 | . . . 1 . . . . . 2 1 . . . 3 4 Operator 1 | . . . . . . . 1 . . . . . . . . Watcher 4 | . 1 . . . 1 . 1 . 1 . . . . . . Swarmer 27 | . . . 1 . 2 . 3 . . 5 . . 1 15 . Grunt 29 | . 2 . . . 4 6 7 . 2 1 . . 5 2 . Duelist 2 | . . 1 . . . 1 . . . . . . . . . Sentry 10 | . . . . . 4 . 1 . 2 2 . 1 . . . Demolisher 1 | . . . . . . . . . 1 . . . . . . Hunter 1 | . . . . . 1 . . . . . . . . . . Programmer 8 | . . . . . . . 2 . 1 3 . . 2 . . Compactor 6 | . . . . . . . . 6 . . . . . . . Thief 1 | . . . . . . . . . . . . 1 . . . Thug 1 | . . . . . . . . 1 . . . . . . . Best Kill Streak 10 | . 2 1 3 . 5 3 6 4 4 4 . 2 3 4 10 Combat Bots Only 5 | . 2 1 1 . 5 3 4 4 2 4 . 2 3 4 . Max Kills in Single Turn 3 | . 1 1 1 . 3 3 2 1 1 3 . 1 1 1 1 Gunslinging . | . . . . . . . . . . . . . . . . Exploded 3 | . 1 . . . 3 2 1 1 . 3 . 1 . . . Melee 1 | . . . . . . . 1 . 1 1 . . 1 1 . Uniques/NPCs Destroyed . | . . . . . . . . . . . . . . . . Combat | -11 -10 -9 -9 -8 -8 -8 -7 -7 -7 -6 -6 -6 -5 -4 -4 -------- Run | Scr Mat Mat Min Mat Sto Gar Fac Was Fac Fac Low Low Fac Fac Ext Damage Taken 8772 | . 202 195 74 369 412 153 693 90 2057 627 . 36 733 2588 543 Core 2614 | . 46 97 13 121 68 57 105 29 543 117 . . 262 798 358 Absorbed by Shields 3 | . . . . . . . . . . . . . . . 3 Core Remaining (%) 67 | 100 81 . 72 . . 55 . . 3 . . 86 73 . . Volleys Fired 165 | . 9 6 5 . 33 9 32 21 18 19 2 2 1 8 . Largest 2 | . 2 2 2 . 2 2 2 1 1 1 1 1 1 1 . Hottest 90 | . 60 60 60 . 71 71 71 39 65 90 30 39 40 65 . Shots Fired 233 | . 18 12 10 . 44 18 60 21 18 19 2 2 1 8 . Gun 106 | . 18 12 10 . 29 8 29 . . . . . . . . Cannon 67 | . . . . . 8 9 23 . 6 13 . . . 8 . Launcher 46 | . . . . . 4 1 8 21 5 5 . 2 . . . Special 14 | . . . . . 3 . . . 7 1 2 . 1 . . Kinetic 94 | . 9 6 5 . 29 8 29 . . . . . . 8 . Thermal 62 | . . . . . 11 9 23 . 6 13 . . . . . Explosive 33 | . . . . . . . . 21 5 5 . 2 . . . Electromagnetic 33 | . 9 6 5 . 4 1 8 . . . . . . . . Robot Hit Streak 50 | . 17 18 12 . 14 9 24 32 49 50 18 20 . 23 . Robot Miss Streak 4 | . . 1 . . 1 2 4 . . 2 . . . 1 . Penetration Max . | . . . . . . . . . . . . . . . . Secondary Targets . | . . . . . . . . . . . . . . . . Shots Hit Robots 326 | . 17 8 8 . 31 13 57 19 40 31 5 2 26 54 15 Core Hits 172 | . 7 4 5 . 18 7 21 22 27 17 . 2 19 20 3 Critical Hits 6 | . . . . . 1 . 1 . 1 2 . . . 1 . Critical Kills 4 | . . . . . 1 . 1 . 1 . . . . 1 . Critical Parts Destroyed 2 | . . . . . . . . . . 2 . . . . . Melee Attacks 194 | . . . . . . 6 10 . 32 14 4 . 49 63 16 Impact 84 | . . . . . . . . . 1 14 . . . 53 16 Slashing 43 | . . . . . . 5 6 . 31 . 1 . . . . Piercing 59 | . . . . . . . . . . . . . 49 10 . Sneak Attacks 28 | . . . . . . 1 4 . 1 1 . . 5 4 12 Combat Hostiles 1 | . . . . . . . 1 . . . . . . . . Follow-up Attacks 2 | . . . . . . . . . . . . . . 2 . Damage Inflicted 14458 | . 228 101 86 . 877 854 2057 2837 1167 1295 . 130 1159 2610 1057 Guns 1423 | . 200 101 81 . 474 84 483 . . . . . . . . Cannons 2055 | . . . . . 223 270 827 . 165 350 . . . 220 . Explosions 4795 | . 28 . . . 179 500 484 2837 176 461 . 130 . . . Melee 6179 | . . . . . . . 263 . 826 484 . . 1159 2390 1057 Ramming 6 | . . . 5 . 1 . . . . . . . . . . Kinetic 1378 | . 53 44 20 . 474 84 483 . . . . . . 220 . Thermal 2115 | . 28 . . . 287 379 906 . 165 350 . . . . . Explosive 3995 | . . . . . . 391 . 2837 176 461 . 130 . . . Electromagnetic 785 | . 147 57 61 . 115 . 405 . . . . . . . . Impact 3291 | . . . . . . . . . 27 484 . . . 1723 1057 Slashing 1062 | . . . . . . . 263 . 799 . . . . . . Piercing 1826 | . . . . . . . . . . . . . 1159 667 . Highest Corruption 6 | . . . . . 1 1 . . 2 1 1 1 . 6 6 Average Corruption 1 | . . . . . 1 1 . . 1 1 1 1 . 3 6 Corruption Purged . | . . . . . . . . . . . . . . . . Effects 25 | . . . . . 1 3 . . 1 . 1 . . 12 7 Message Errors 7 | . . . . . 1 1 . . . . . . . 3 2 Matter Fused 6 | . . . . . . . . . . . . . . 4 2 Heat Flow Errors 1 | . . . . . . . . . . . . . . . 1 Energy Discharges 5 | . . . . . . 1 . . . . 1 . . 2 1 Data Loss (minor) 1 | . . . . . . 1 . . . . . . . . . Data Loss (major) 1 | . . . . . . . . . . . . . . . 1 Targeting Errors 4 | . . . . . . . . . 1 . . . . 3 . Overload Shots . | . . . . . . . . . . . . . . . . Overflow Damage 1713 | . . . . . 52 75 110 56 78 139 . . 129 595 479 Projectiles 135 | . . . . . 52 . 80 . 3 . . . . . . Explosions 206 | . . . . . . 75 30 56 . 45 . . . . . Melee 1372 | . . . . . . . . . 75 94 . . 129 595 479 Knockbacks 18 | . . . . . . . . . . 3 . . . 7 8 Impact 17 | . . . . . . . . . . 3 . . . 7 7 Kinetic . | . . . . . . . . . . . . . . . . Secondary 1 | . . . . . . . . . . . . . . . 1 Self-Inflicted Damage 360 | . 30 . 2 . 13 124 18 90 28 55 . . . . . Shots 14 | . 1 . . . 1 1 1 5 2 3 . . . . . Rammed 3 | . . . 2 . 1 . . . . . . . . . . Targets Rammed 3 | . . . 2 . 1 . . . . . . . . . . Kicked . | . . . . . . . . . . . . . . . . Crushed . | . . . . . . . . . . . . . . . . Highest Temperature 233 | . 85 28 4 . 9 . 16 . 10 188 39 14 22 3 233 Average Temperature 37 | . 32 12 3 . 6 . 9 . 4 68 18 11 13 3 140 Received Heat Transfer 1854 | . 90 42 45 72 198 9 312 . 405 78 . 12 90 303 198 Siege Activations . | . . . . . . . . . . . . . . . . Robots Corrupted 2 | . . . . . . . 2 . . . . . . . . Combat Hostiles 1 | . . . . . . . 1 . . . . . . . . Parts Fried 27 | . 3 . . . . . 3 . . 1 . . . 3 17 Impact Corruptions 38 | . . . . . . . . . . 4 . . . 15 19 Robots Melted . | . . . . . . . . . . . . . . . . Combat Hostiles . | . . . . . . . . . . . . . . . . Parts Melted 2 | . . . . . . . 2 . . . . . . . . Heat Transferred 2829 | . 50 . . . 450 450 1250 . 222 407 . . . . . Parts Sabotaged . | . . . . . . . . . . . . . . . . Parts Stolen . | . . . . . . . . . . . . . . . . Parts Stripped . | . . . . . . . . . . . . . . . . Power Chain Reactions 4 | . 1 . . . 1 1 1 . . . . . . . . Missiles Intercepted . | . . . . . . . . . . . . . . . . Alert | -11 -10 -9 -9 -8 -8 -8 -7 -7 -7 -6 -6 -6 -5 -4 -4 ------- Run | Scr Mat Mat Min Mat Sto Gar Fac Was Fac Fac Low Low Fac Fac Ext Peak Influence 636 | . 87 72 113 52 348 636 452 181 134 215 . . 216 275 176 Initial 289 | . . 27 23 37 6 197 289 100 111 44 . . 14 91 74 Average 136 | . 42 40 50 37 63 417 353 168 69 72 . . 57 105 102 Maximum Alert Level 2 | . . . . . 1 2 2 . . 1 . . 1 1 . Low Security (%) 77 | . 100 100 100 100 95 22 . 100 100 99 . . 95 81 100 Level 1 14 | . . . . . 4 23 67 . . . . . 4 18 . Level 2 8 | . . . . . . 53 32 . . . . . . . . Level 3 . | . . . . . . . . . . . . . . . . Level 4 . | . . . . . . . . . . . . . . . . Level 5 . | . . . . . . . . . . . . . . . . High Security . | . . . . . . . . . . . . . . . . Max Security . | . . . . . . . . . . . . . . . . Squads Dispatched 26 | . 1 1 . 1 2 . 6 . 8 2 . . 3 1 1 Investigation 4 | . 1 . . . . . 2 . . . . . 1 . . Extermination 7 | . . . . . . . 1 . 2 2 . . 1 1 . Reinforcement 9 | . . 1 . . 1 . 3 . 2 . . . 1 . 1 Assault 1 | . . . . 1 . . . . . . . . . . . Garrison 5 | . . . . . 1 . . . 4 . . . . . . Intercept . | . . . . . . . . . . . . . . . . Construction Impeded 3 | . . . . . . . 2 . 1 . . . . . . Haulers Reinforced . | . . . . . . . . . . . . . . . . Stealth | -11 -10 -9 -9 -8 -8 -8 -7 -7 -7 -6 -6 -6 -5 -4 -4 --------- Run | Scr Mat Mat Min Mat Sto Gar Fac Was Fac Fac Low Low Fac Fac Ext Distress Signals 7 | . . . 1 1 2 . . . 1 . . . 2 . . Communications Jammed 1 | . . . . . . . . . . . . . . . 1 Distress Signals 1 | . . . . . . . . . . . . . . . 1 Times Spotted 176 | . 9 7 4 6 19 13 19 6 15 11 1 2 20 36 8 Peak Tracking Total 8 | . 5 5 3 6 5 6 4 2 4 4 1 2 7 8 5 Tactical Retreats 21 | . . . 1 . 1 . 6 . 2 . . . 3 7 1 Traps | -11 -10 -9 -9 -8 -8 -8 -7 -7 -7 -6 -6 -6 -5 -4 -4 ------- Run | Scr Mat Mat Min Mat Sto Gar Fac Was Fac Fac Low Low Fac Fac Ext Traps Triggered 11 | . 1 . . . 1 . 2 . . 4 . . 1 1 1 Indirectly 1 | . . . . . 1 . . . . . . . . . . Trap Hack Attempts . | . . . . . . . . . . . . . . . . Triggered . | . . . . . . . . . . . . . . . . Disarmed . | . . . . . . . . . . . . . . . . Reprogrammed . | . . . . . . . . . . . . . . . . Reused . | . . . . . . . . . . . . . . . . Traps Extracted . | . . . . . . . . . . . . . . . . Installed . | . . . . . . . . . . . . . . . . Triggered 3 | . . . . . . . 1 . . . . 2 . . . Machines | -11 -10 -9 -9 -8 -8 -8 -7 -7 -7 -6 -6 -6 -5 -4 -4 ---------- Run | Scr Mat Mat Min Mat Sto Gar Fac Was Fac Fac Low Low Fac Fac Ext Machines Disabled 5 | . . . . . 1 3 . . . . 1 . . . . Max in Single Turn 1 | . . . . . 1 1 . . . . 1 . . . . Phase Generator 1 | . . . . . . 1 . . . . . . . . . Machines Sabotaged . | . . . . . . . . . . . . . . . . Garrisons Compromised . | . . . . . . . . . . . . . . . . Overloaded Fab Kills . | . . . . . . . . . . . . . . . . Fab Network Shutdowns . | . . . . . . . . . . . . . . . . Hacking | -11 -10 -9 -9 -8 -8 -8 -7 -7 -7 -6 -6 -6 -5 -4 -4 --------- Run | Scr Mat Mat Min Mat Sto Gar Fac Was Fac Fac Low Low Fac Fac Ext Machines Accessed 24 | . . . . . 7 . 3 . 3 5 . . 2 4 . Terminals 10 | . . . . . 4 . . . 1 2 . . 1 2 . Fabricators 4 | . . . . . . . 1 . . 1 . . . 2 . Repair Stations 1 | . . . . . 1 . . . . . . . . . . Recycling Units 4 | . . . . . 1 . 1 . 2 . . . . . . Scanalyzers 4 | . . . . . . . 1 . . 2 . . 1 . . Garrison Access 1 | . . . . . 1 . . . . . . . . . . Total Hacks 48 | . . . . . 13 . 6 . 3 9 . . 4 13 . Successful 29 | . . . . . 10 . 2 . 2 5 . . 1 9 . Failed 19 | . . . . . 3 . 4 . 1 4 . . 3 4 . Catastrophic 3 | . . . . . . . 1 . . 1 . . 1 . . Database Lockouts . | . . . . . . . . . . . . . . . . Manual . | . . . . . . . . . . . . . . . . Terminals 26 | . . . . . 7 . . . 1 4 . . 3 11 . Fabricators 5 | . . . . . . . 1 . . 2 . . . 2 . Repair Stations 2 | . . . . . 2 . . . . . . . . . . Recycling Units 8 | . . . . . 2 . 4 . 2 . . . . . . Scanalyzers 5 | . . . . . . . 1 . . 3 . . 1 . . Garrison Access 2 | . . . . . 2 . . . . . . . . . . Terminal Hacks 15 | . . . . . 5 . . . . 2 . . 1 7 . Prototype ID Bank 1 | . . . . . . . . . . . . . . 1 . Open Door 3 | . . . . . 3 . . . . . . . . . . Emergency Access Points 1 | . . . . . . . . . . . . . . 1 . Terminal Index 1 | . . . . . . . . . . . . . . 1 . Scanalyzer Index 1 | . . . . . . . . . . . . . . 1 . Alert Level 1 | . . . . . . . . . . . . . 1 . . Unreport Threat 2 | . . . . . 1 . . . . . . . . 1 . Dispatch Records 1 | . . . . . . . . . . . . . . 1 . Investigation Status 1 | . . . . . 1 . . . . . . . . . . Hauler Manifests 1 | . . . . . . . . . . 1 . . . . . Registered Components 1 | . . . . . . . . . . . . . . 1 . Zone Layout 1 | . . . . . . . . . . 1 . . . . . Fabricator Hacks 5 | . . . . . . . 1 . . 2 . . . 2 . Network Status 3 | . . . . . . . . . . 2 . . . 1 . Build 2 | . . . . . . . 1 . . . . . . 1 . Repair Station Hacks 2 | . . . . . 2 . . . . . . . . . . Scan Component 1 | . . . . . 1 . . . . . . . . . . Repair 1 | . . . . . 1 . . . . . . . . . . Recycling Unit Hacks 5 | . . . . . 2 . 1 . 2 . . . . . . Report Inventory 3 | . . . . . 1 . 1 . 1 . . . . . . Retrieve Components 2 | . . . . . 1 . . . 1 . . . . . . Scanalyzer 1 | . . . . . . . . . . 1 . . . . . Insert Component 1 | . . . . . . . . . . 1 . . . . . Garrison Access Hacks 1 | . . . . . 1 . . . . . . . . . . Unlock Access 1 | . . . . . 1 . . . . . . . . . . Unauthorized Hacks . | . . . . . . . . . . . . . . . . Terminals . | . . . . . . . . . . . . . . . . Fabricators . | . . . . . . . . . . . . . . . . Repair Stations . | . . . . . . . . . . . . . . . . Recycling Units . | . . . . . . . . . . . . . . . . Scanalyzers . | . . . . . . . . . . . . . . . . Garrison Access . | . . . . . . . . . . . . . . . . Data Cores Recovered . | . . . . . . . . . . . . . . . . Used . | . . . . . . . . . . . . . . . . Hacking Detections 13 | . . . . . 1 . 2 . 2 3 . . 2 3 . Full Trace Events 2 | . . . . . 1 . 1 . . . . . . . . Feedback Events . | . . . . . . . . . . . . . . . . Feedback Blocked . | . . . . . . . . . . . . . . . . Robot Schematics Acquired . | . . . . . . . . . . . . . . . . Robots Built . | . . . . . . . . . . . . . . . . Matter . | . . . . . . . . . . . . . . . . Time . | . . . . . . . . . . . . . . . . Total Robot Build Rating . | . . . . . . . . . . . . . . . . Part Schematics Acquired . | . . . . . . . . . . . . . . . . Parts Built 3 | . . . . . . . 1 . . . . . . 2 . Matter 424 | . . . . . . . 190 . . . . . . 234 . Time 105 | . . . . . . . 47 . . . . . . 58 . Total Part Build Rating 19 | . . . . . . . 5 . . . . . . 14 . Parts Repaired 1 | . . . . . 1 . . . . . . . . . . Time 38 | . . . . . 38 . . . . . . . . . . Parts Recycled . | . . . . . . . . . . . . . . . . Recycled Matter . | . . . . . . . . . . . . . . . . Retrieved Matter . | . . . . . . . . . . . . . . . . Retrieved Components 13 | . . . . . 3 . . . 10 . . . . . . Parts Scanalyzed 1 | . . . . . . . . . . 1 . . . . . Part Schematics Acquired . | . . . . . . . . . . . . . . . . Parts Damaged . | . . . . . . . . . . . . . . . . Bothacking | -11 -10 -9 -9 -8 -8 -8 -7 -7 -7 -6 -6 -6 -5 -4 -4 ------------ Run | Scr Mat Mat Min Mat Sto Gar Fac Was Fac Fac Low Low Fac Fac Ext Used RIF Installer 1 | . . . . . . 1 . . . . . . . . . Robots Hacked 8 | . . . . . . 1 3 . 3 1 . . . . . Non-combat 6 | . . . . . . . 3 . 2 1 . . . . . Combat 2 | . . . . . . 1 . . 1 . . . . . . Robot Hacks Applied 8 | . . . . . . 1 3 . 3 1 . . . . . parse_system 2 | . . . . . . 1 . . 1 . . . . . . generate_echo 1 | . . . . . . . 1 . . . . . . . . start_evac 1 | . . . . . . . 1 . . . . . . . . ignore_parts 1 | . . . . . . . . . . 1 . . . . . link_fov 1 | . . . . . . . . . 1 . . . . . . amplify_resonance 1 | . . . . . . . 1 . . . . . . . . formatsys_low 1 | . . . . . . . . . 1 . . . . . . Relay Couplers Released 3 | . . . . . . . 3 . . . . . . . . Programmers 3 | . . . . . . . 3 . . . . . . . . Attached 3 | . . . . . . . 3 . . . . . . . . Robots Rewired . | . . . . . . . . . . . . . . . . Allies Hacked . | . . . . . . . . . . . . . . . . Hacks Repelled . | . . . . . . . . . . . . . . . . Allies | -11 -10 -9 -9 -8 -8 -8 -7 -7 -7 -6 -6 -6 -5 -4 -4 -------- Run | Scr Mat Mat Min Mat Sto Gar Fac Was Fac Fac Low Low Fac Fac Ext Total Allies 12 | . . . . . 10 . . 1 1 . . . . . . Largest Group 10 | . . . . . 10 7 2 1 1 . . . . . . Highest-Rated Group 173 | . . . . . 173 125 37 31 8 . . . . . . Highest-Rated Ally 31 | . . . . . 29 29 29 31 8 . . . . . . Total Orders 4 | . . . . . . . . . 1 . . . 3 . . ROAM 1 | . . . . . . . . . . . . . 1 . . PICKUP 1 | . . . . . . . . . 1 . . . . . . EXPLORE 2 | . . . . . . . . . . . . . 2 . . Ally Attacks 83 | . . . . . 36 32 1 14 . . . . . . . Total Damage 1082 | . . . . . 431 463 . 188 . . . . . . . Kills 12 | . . . . . 5 7 . . . . . . . . . Allies Corrupted . | . . . . . . . . . . . . . . . . Allies Melted . | . . . . . . . . . . . . . . . . Intel | -11 -10 -9 -9 -8 -8 -8 -7 -7 -7 -6 -6 -6 -5 -4 -4 ------- Run | Scr Mat Mat Min Mat Sto Gar Fac Was Fac Fac Low Low Fac Fac Ext Robot Analysis Total . | . . . . . . . . . . . . . . . . Derelict Logs Recovered 4 | . . . 1 . . . . . . . 3 . . . . Drone Launches 3 | . . . . . . . . . . . . . 3 . . Drone Recoveries . | . . . . . . . . . . . . . . . . Exploration | -11 -10 -9 -9 -8 -8 -8 -7 -7 -7 -6 -6 -6 -5 -4 -4 ------------- Run | Scr Mat Mat Min Mat Sto Gar Fac Was Fac Fac Low Low Fac Fac Ext Turns Passed 8032 | . 215 86 203 105 1053 523 1013 224 1087 909 331 79 795 1103 306 Spaces Moved 5318 | 1 143 56 151 74 515 249 507 112 572 659 480 137 611 826 225 Core 424 | . . . . . . . . . 95 17 . . 129 95 88 Treads 2205 | . . . . . 502 249 507 112 477 358 . . . . . Legs 655 | 1 143 56 151 58 . . . . . . . . . 111 135 Wheels 31 | . . . . 16 13 . . . . . . . . . 2 Hover 428 | . . . . . . . . . . . . . . 428 . Flight 1575 | . . . . . . . . . . 284 480 137 482 192 . Fastest Speed 31 | 120 120 120 120 100 100 170 160 160 50 31 31 31 31 40 50 Average Speed 109 | 120 120 120 120 115 166 170 168 160 144 104 31 31 82 73 92 Slowest Speed 440 | 120 120 120 120 120 170 170 170 160 350 440 31 34 400 200 120 Overloaded Moves . | . . . . . . . . . . . . . . . . Propulsion Burnouts . | . . . . . . . . . . . . . . . . Robots Hopped . | . . . . . . . . . . . . . . . . Cave-ins Triggered . | . . . . . . . . . . . . . . . . Exploration Rate (%) 29 | 3 35 9 36 6 62 48 19 71 17 16 68 20 26 17 20 Regions Visited 15 Branch Regions 5 Pre-discovered Areas 1 | . . . . . . . . . . . 1 . . . . Known Exits Taken 11 | . 1 1 1 1 1 . . . 1 1 1 1 1 1 . Unknown Exits Taken 1 | 1 . . . . . . . . . . . . . . . Scrap Searched 3 | . . . . . . . . . . . 3 . . . . Spaces Dug 34 | . . . . . . . . . 9 . . . 17 7 1 Terrain Destroyed 302 | . 2 . . . 6 74 3 125 18 44 . 3 17 9 1 Melee 34 | . . . . . . . . . 9 . . . 17 7 1 Projectile 7 | . . . . . 3 . . . . 2 . . . 2 . AOE 261 | . 2 . . . 3 74 3 125 9 42 . 3 . . . Terrain Rammed . | . . . . . . . . . . . . . . . . Walls Destroyed . | . . . . . . . . . . . . . . . . Machines Disabled . | . . . . . . . . . . . . . . . . Actions | -11 -10 -9 -9 -8 -8 -8 -7 -7 -7 -6 -6 -6 -5 -4 -4 --------- Run | Scr Mat Mat Min Mat Sto Gar Fac Was Fac Fac Low Low Fac Fac Ext Total 6961 | . 171 64 163 94 667 320 597 132 768 842 661 169 801 1218 294 Wait 1014 | . 13 2 5 16 71 45 21 . 117 94 167 30 121 278 34 Move 5305 | . 142 55 150 73 515 248 507 111 571 658 479 136 610 825 225 Hop . | . . . . . . . . . . . . . . . . Pick Up 81 | . 2 . 1 1 19 1 5 . 8 16 2 . 2 20 4 Fast Attach 42 | . . . . . 2 . 7 . 6 14 1 . 8 4 . Attach 59 | . 1 1 . 2 11 1 . . 7 10 . 1 . 20 5 Detach . | . . . . . . . . . . . . . . . . Swap 35 | . 1 . . . 5 9 8 . 3 4 2 . 2 1 . Drop 63 | . 3 . . 2 10 1 7 . 6 13 4 . 8 5 4 Fire 165 | . 9 6 5 . 33 9 32 21 18 19 2 2 1 8 . Melee 188 | . . . . . . 6 10 . 32 14 4 . 49 57 16 Ram . | . . . . . . . . . . . . . . . . Kick 2 | . . . 2 . . . . . . . . . . . . Crush 1 | . . . . . 1 . . . . . . . . . . Escape Stasis 6 | . . . . . . . . . . . . . . . 6 Rewire . | . . . . . . . . . . . . . . . . Trap . | . . . . . . . . . . . . . . . . Miscellaneous . | . . . . . . . . . . . . . . . . Route ------- -11/Scrapyard -10/Materials -9/Materials -9/Mines -8/Materials -8/Storage (discovered 2 exits: *Fac / Gar) -8/Garrison -7/Factory -7/Waste -7/Factory -6/Factory -6/Lower Caves -6/Lower Caves -5/Factory -4/Factory -4/Extension History --------- Turn | Location | Event 1 | -11/Scrapyard | Discovered new exit (range 0) 1 | -11/Scrapyard | Entered Materials 187 | -10/Materials | Discovered new exit (range 15) 214 | -10/Materials | Identified exit to Materials 216 | -10/Materials | Entered another Materials area 216 | -9/Materials | Evolved 2 slots: Utility x2 284 | -9/Materials | Discovered new exit (range 14) 300 | -9/Materials | Identified exit to Mines 302 | -9/Materials | Build established: Mutant 302 | -9/Materials | Entered Mines 435 | -9/Mines | Assembled infested the area 440 | -9/Mines | Assisted by a Guerilla fighting off Assembled 494 | -9/Mines | Met a Derelict testing a Signal Generator 495 | -9/Mines | Discovered new exit (range 7) 500 | -9/Mines | Found Signal Generator 504 | -9/Mines | Identified exit to Materials 505 | -9/Mines | Entered Materials 505 | -8/Materials | Evolved 2 slots: Propulsion x1, Utility x1 506 | -8/Materials | Identified exit to Storage 610 | -8/Materials | Entered Storage 639 | -8/Storage | Lost 5 parts (3n2w) 1543 | -8/Storage | Repaired Adv. Sensor Array 1562 | -8/Storage | Assisted by bots powering up and referring to "LRC-V3" 1572 | -8/Storage | Garrison activated, responded to threat 1630 | -8/Storage | Discovered new exit (range 15) 1655 | -8/Storage | Identified exit to Garrison 1663 | -8/Storage | Entered Garrison 1663 | -8/Garrison | Accompanied by 7 allies 1700 | -8/Garrison | Triggered checkpoint 1788 | -8/Garrison | Triggered checkpoint 1796 | -8/Garrison | Triggered checkpoint 1904 | -8/Garrison | Triggered checkpoint 2081 | -8/Garrison | Phase Generator disabled 2081 | -8/Garrison | Discovered new exit (range 11) 2095 | -8/Garrison | Identified exit to Factory 2107 | -8/Garrison | Installed Relay Interface Framework 2186 | -8/Garrison | Entered Factory 2186 | -7/Factory | Accompanied by 2 allies 2186 | -7/Factory | Evolved 2 slots: Utility x2 3162 | -7/Factory | Fabricated Imp. System Shield (x1) 3199 | -7/Factory | Sucked down chute 3199 | -7/Factory | Entered Waste 3200 | -7/Waste | Met a frightened Derelict 3212 | -7/Waste | Spotted C-40 Crusher 3223 | -7/Waste | Destroyed C-40 Crusher 3227 | -7/Waste | Spotted C-40 Crusher 3238 | -7/Waste | Destroyed C-40 Crusher 3242 | -7/Waste | Spotted C-40 Crusher 3245 | -7/Waste | Spotted C-40 Crusher 3247 | -7/Waste | Destroyed C-40 Crusher 3250 | -7/Waste | Destroyed C-40 Crusher 3260 | -7/Waste | Spotted C-40 Crusher 3267 | -7/Waste | Spotted C-40 Crusher 3274 | -7/Waste | Destroyed C-40 Crusher 3285 | -7/Waste | Destroyed C-40 Crusher 3399 | -7/Waste | Discovered new exit (range 16) 3422 | -7/Waste | Identified exit to Factory 3423 | -7/Waste | Entered Factory 3469 | -7/Factory | Build established: Hacker-Mutant 3946 | -7/Factory | Build established: Assassin 4031 | -7/Factory | Assembled infested ambush trap array 4157 | -7/Factory | Garrison activated, responded to threat 4180 | -7/Factory | Found Prototype Launcher 4216 | -7/Factory | Lost 6 parts (1p3n1u1w) 4257 | -7/Factory | Garrison activated, responded to threat 4266 | -7/Factory | Core integrity fell below 50% 4302 | -7/Factory | Lost 3 parts (1n1u1w) 4303 | -7/Factory | Identified Rocket Array 4352 | -7/Factory | Lost 4 parts (2u2w) 4488 | -7/Factory | Discovered new exit (range 17) 4501 | -7/Factory | Core integrity fell below 20% 4506 | -7/Factory | Lost 4 parts (1p1n1u1w) 4506 | -7/Factory | Identified exit to Factory 4510 | -7/Factory | Entered another Factory area 4510 | -6/Factory | Evolved 2 slots: Propulsion x1, Utility x1 4578 | -6/Factory | Build established: Mutant 5024 | -6/Factory | Build established: Hacker-Mutant 5115 | -6/Factory | Lost 3 parts (2u1w) 5127 | -6/Factory | Discovered new exit (range 6) 5170 | -6/Factory | Identified exit to Lower Caves 5419 | -6/Factory | Entered Lower Caves 5423 | -6/Lower Caves | Learned Factory garrison access intel 5437 | -6/Lower Caves | Encountered a Warlord checkpoint 5445 | -6/Lower Caves | Learned 8 Factory zone layouts 5483 | -6/Lower Caves | Attacked by a delusional Derelict stockpiling parts 5502 | -6/Lower Caves | Learned location of Extension (-4) 5618 | -6/Lower Caves | Discovered new exit (range 13) 5721 | -6/Lower Caves | Build established: Hacker-Scout 5750 | -6/Lower Caves | Identified exit to Lower Caves 5750 | -6/Lower Caves | Entered another Lower Caves area 5758 | -6/Lower Caves | Attracted the attention of an 0b10 checkpoint 5820 | -6/Lower Caves | Discovered new exit (range 18) 5829 | -6/Lower Caves | Identified exit to Factory 5829 | -6/Lower Caves | Entered Factory 5829 | -5/Factory | Evolved 2 slots: Power x1, Utility x1 5830 | -5/Factory | Identified exit to Factory 5831 | -5/Factory | Loaded intel: 4 garrison access locations 6139 | -5/Factory | Found Prototype Processor 6139 | -5/Factory | Identified Exp. Signal Interpreter 6420 | -5/Factory | Build established: Hacker-Assassin 6568 | -5/Factory | Lost 5 parts (1p3n1u) 6624 | -5/Factory | Entered another Factory area 6624 | -4/Factory | Evolved 2 slots: Utility x2 6903 | -4/Factory | Build established: Hacker-Mutant 7218 | -4/Factory | Fabricated Point Defense Array (x2) 7496 | -4/Factory | Core integrity fell below 50% 7528 | -4/Factory | Lost 7 parts (3n3u1w) 7707 | -4/Factory | Discovered new exit (range 17) 7726 | -4/Factory | Identified exit to Extension 7727 | -4/Factory | Entered Extension 7758 | -4/Extension | Lost 6 parts (1p2n2u1w) 7952 | -4/Extension | Disrupted transfer network 7985 | -4/Extension | Core integrity fell below 20% 8016 | -4/Extension | Lost 3 parts (2n1w) 8033 | -4/Extension | Destroyed by G-67 Veteran with Electrolaser Last Messages --------------- 08010_ System corrupted: Energy discharge (-16). 08012_ T-07 Excavator exits Transfer Station. 08012_ U-05 Engineer exits Transfer Station. 08014_ K-01 Serf exits Transfer Station. 08015_ U-05 Engineer exits Transfer Station. 08027_ System corrupted: Matter fused (-9). 08027_ O-16 Technician: "IFF HANDSHAKE FAILED. SECURING TERMINAL." 08028_ Triggered Stasis Trap. 08028_ A bubble of rippling energy engulfs the area. 08028_ Field strength at 94. 08028_ O-16 Technician uses terminal to summon reinforcements. 08028_ ALERT: Hostiles spotted, dispatching reinforcements to Terminal E013. 08028_ O-16 Technician locks terminal. 08028_ Field strength at 88. 08029_ Field strength at 82. 08030_ Field strength at 76. 08031_ Field strength at 70. 08032_ Field strength at 64. 08033_ Field strength at 58. Map ----- +----------------------------------------------------+ | | | | | | | | | | | | | | | | | | | | | ???????????????????????????????????????????? | | ???????????????????????????????????????????? | | ?????############??????????????????????????? | | ?????# #??????????????????????????? | | ?????# ??????????????????????????? | | ?????# #??????????????????????????? | | ?????# " #??????????????????????????? | | ?????# "" #??????????????????????????? | | ?????# "" #??????????????????????????? | | ?????# "" #??????????????????????????? | | ?????#"" "" ########???????????????????? | | ?????#"" "" # ####????????????????? | | ?????#"T "" # """ """#????????????????? | | ?????#"" " g^ "Y" T"#????????????????? | | ?????#"" # " " """#????????????????? | | ?????# #[o@ ###?????????????????? | | ?????# # !#???????????????????? | | ?????# ###########"T"###???????????????????? | | ?????# #?????????#####?????????????????????? | | ?????# ##??????????????????????????????????? | | ?????#%"#??????????????????????????????????? | | ?????# ##??????????????????????????????????? | | ?????# #???????????????????????????????????? | | ?????# #???????????????????????????????????? | | ?????# #???????????????????????????????????? | | ?????# #???????????????????????????????????? | | ?????# #???????????????????????????????????? | | ?????# #???????????????????????????????????? | | ?????# #???????????????????????????????????? | | ?????# #???????????????????????????????????? | | ?????# #???????????????????????????????????? | | ?????# #???????????????????????????????????? | | ?????# #???????????????????????????????????? | | ?????# #???????????????????????????????????? | | ?##### #####???????????????????????????????? | | ?# "" "" #???????????????????????????????? | | ?# " " ################################# | | ?# | | ?# | | ?# | +----------------------------------------------------+ Best States ------------- Heat Dissipation 43 Coolant Potential 50 Energy Generation 31 Energy Capacity 380 Matter Stores 300 Matter Capacity 300 Sight Range 22 Robot Scan Range 16 Terrain Scan Density 10 Jamming Range 12 Corruption Prevention 20 Armor Coverage 225 Resistance: KI 20 Resistance: TH 20 Resistance: EX 20 Resistance: EM 20 Resistance: I 20 Resistance: S 20 Resistance: P 20 Point Defense Rating 160 Evasion (%) 63 Melee Accuracy 8 Core Analysis 6 Recoil Reduction 4 Kinecelleration 30 Salvage Targeting 3 Offensive Hacking 30 Defensive Hacking 14 Relay Coupler Types 73 Relay Coupler Value 2 Item Schematics ----------------- None Robot Schematics ------------------ None Fabricated ------------ Imp. System Shield | x1 | -7/Factory | Preloaded Point Defense Array | x2 | -4/Factory | Preloaded Alien Tech Used ----------------- None Achievements -------------- Universal Adapter Challenges ------------ None Game ------ Seed DispersionSpectralMapper Manual? 0 Play Time 01:37:37 Cumulative 261.7 hours Start 2020.12.04 @ 20:02:11 End 2021.01.11 @ 21:55:28 Sessions 9 Manual Loads 0 Difficulty Adventurer Special Mode None Game No. 208 Rogue 195 Adventurer 13 Explorer 0 Win Type - Total 1 Types 0/0/0/1/0/0/0/0/0 Lore% 34 Gallery% 65 Achievement% 41 Wizard Run 0 Options --------- ASCII 0 Keyboard 0 Movement Mouse Keybinds 0 Fullscreen 1 Font 18/SmallcapsGlow Map View 76x50 Tactical HUD 1 Map Filters NONE Filters NONE Steam 1 RUN: d1525442-71dd-415a-8255-f2c11fe9e936